bitfinex/quotes_BTCUSD_20250825
["timestamp","ask_amount","ask_price","bid_price","bid_amount"]
[1756108178795,0.5884359,111750.0,111740.0,0.17866557]
[1756108179011,0.6184739,111750.0,111740.0,0.17658557]
[1756108179666,0.6184739,111750.0,111740.0,0.17434824]
[1756108179896,0.6184739,111750.0,111740.0,0.14399931]
[1756108181140,1.2048798,111750.0,111740.0,0.14399931]
[1756108182495,0.7726539,111750.0,111740.0,0.14600931]
[1756108182760,0.7758639,111750.0,111740.0,0.14399931]
[1756108183497,0.7758639,111750.0,111740.0,0.18142357]
[1756108183498,0.026898,111750.0,111740.0,0.18142357]
[1756108183500,0.026898,111750.0,111740.0,0.1836609]
[1756108183754,0.026898,111750.0,111740.0,0.17918624]
[1756108184568,0.17947409,111790.0,111780.0,0.05706456]
[1756108184812,0.00321,111780.0,111770.0,0.05706456]
[1756108185078,0.59174057,111780.0,111770.0,0.14394931]
[1756108185340,0.61863357,111780.0,111770.0,0.14394931]
[1756108185611,0.61863357,111780.0,111760.0,0.05706456]
[1756108185897,0.81482753,111770.0,111760.0,0.14394931]
[1756108186147,0.82001753,111770.0,111760.0,0.08688475]
[1756108186395,0.82001753,111770.0,111760.0,0.14394931]
[1756108186653,0.84691353,111770.0,111760.0,0.15834424]
[1756108187707,0.84891353,111770.0,111760.0,0.15834424]
[1756108187960,1.45276845,111770.0,111750.0,0.05706456]
[1756108188198,0.5864059,111760.0,111750.0,0.14394931]
[1756108188417,0.5915959,111760.0,111750.0,0.14394931]
[1756108189093,0.00519,111760.0,111750.0,0.14394931]
[1756108189320,0.6184939,111760.0,111750.0,0.14394931]
[1756108189797,0.6204939,111760.0,111750.0,0.14394931]
[1756108192021,0.6204939,111760.0,111750.0,0.14595931]
[1756108192261,0.7745639,111760.0,111750.0,0.14595931]
[1756108192699,0.7765639,111760.0,111750.0,0.14595931]
[1756108192915,0.81617166,111760.0,111750.0,0.14595931]
[1756108194011,0.81938166,111760.0,111750.0,0.15907797]
[1756108195162,0.81938166,111760.0,111750.0,0.14394931]
[1756108200373,1.15938166,111760.0,111740.0,0.05711456]
[1756108200582,1.15938166,111760.0,111740.0,0.06015456]
[1756108200583,0.5774859,111750.0,111740.0,0.06015456]
[1756108200814,0.7347259,111750.0,111740.0,0.14904931]
[1756108201047,0.7616249,111750.0,111740.0,0.14904931]
[1756108201330,0.184139,111750.0,111740.0,0.16418299]
[1756108201567,0.6276454,111750.0,111740.0,0.16642032]
[1756108201802,0.6276454,111750.0,111740.0,0.16418299]
[1756108202031,0.6276454,111750.0,111740.0,0.16642032]
[1756108202032,0.026899,111750.0,111740.0,0.16642032]
[1756108202736,0.00014467,111780.0,111770.0,0.05706456]
[1756108202977,0.60089107,111780.0,111770.0,0.15166577]
[1756108203211,0.62777907,111780.0,111770.0,0.15917923]
[1756108203462,0.61337816,111780.0,111770.0,0.15917923]
[1756108203691,0.02703267,111780.0,111770.0,0.15917923]
[1756108204174,0.02703267,111780.0,111770.0,0.1569425]
[1756108204396,0.02703267,111780.0,111770.0,0.15470577]
[1756108204670,0.02803267,111780.0,111770.0,0.15470577]
[1756108204890,0.61437816,111780.0,111770.0,0.15470577]
[1756108205776,0.02803267,111780.0,111770.0,0.15470577]
[1756108205993,0.61437816,111780.0,111770.0,0.15470577]
[1756108206226,0.61337816,111780.0,111770.0,0.15470577]
[1756108206868,0.02703267,111780.0,111770.0,0.15470577]
[1756108207080,0.61337816,111780.0,111770.0,0.15470577]
[1756108207787,0.02703267,111780.0,111770.0,0.1569425]
[1756108208061,0.02703267,111780.0,111770.0,0.15917923]
[1756108208495,0.02703267,111780.0,111770.0,0.1569425]
[1756108209341,0.61337816,111780.0,111770.0,0.15470577]
[1756108209565,0.61337816,111780.0,111770.0,0.31190577]
[1756108209998,0.61237816,111780.0,111770.0,0.31190577]
[1756108210240,0.61237816,111780.0,111770.0,0.09764121]
[1756108210455,0.61237816,111780.0,111770.0,0.30882577]
[1756108210675,0.61447816,111780.0,111770.0,0.30882577]
[1756108210916,0.02603267,111780.0,111770.0,0.31198577]
[1756108212326,0.02603267,111780.0,111770.0,0.38078577]
[1756108213766,0.61237816,111780.0,111770.0,0.38078577]
[1756108213993,0.61447816,111780.0,111770.0,0.37762577]
[1756108214414,0.61447816,111780.0,111770.0,0.22046577]
[1756108214627,0.61761816,111780.0,111770.0,0.37758577]
[1756108215050,0.61447816,111780.0,111770.0,0.37763577]
[1756108216281,0.61237816,111780.0,111770.0,0.37763577]
[1756108216483,0.61237816,111780.0,111770.0,0.38079577]
[1756108219104,0.02603267,111780.0,111770.0,0.38079577]
[1756108219317,0.61237816,111780.0,111770.0,0.38079577]
[1756108219739,0.61237816,111780.0,111770.0,0.37562577]
[1756108219740,0.61761816,111780.0,111770.0,0.37562577]
[1756108220126,0.61761816,111780.0,111770.0,0.37558577]
[1756108220385,0.61447816,111780.0,111770.0,0.37766577]
[1756108221394,0.61761816,111780.0,111770.0,0.14970577]
[1756108221636,0.61761816,111780.0,111770.0,0.30678577]
[1756108221963,0.03127267,111780.0,111770.0,0.30678577]
[1756108222165,0.61447816,111780.0,111770.0,0.30886577]
[1756108222368,0.61237816,111780.0,111770.0,0.31202577]
[1756108223035,0.61761816,111780.0,111770.0,0.14970577]
[1756108223234,0.61761816,111780.0,111770.0,0.14399931]
[1756108223379,0.61761816,111780.0,111770.0,0.30107931]
[1756108223578,0.61761816,111780.0,111770.0,0.14399931]
[1756108223781,0.61761816,111780.0,111770.0,0.30107931]
[1756108224416,0.61761816,111780.0,111770.0,0.14399931]
[1756108224619,0.61761816,111780.0,111770.0,0.30107931]
[1756108225408,0.61961816,111780.0,111770.0,0.33119224]
[1756108226406,0.03327267,111780.0,111770.0,0.33119224]
[1756108226718,0.61961816,111780.0,111770.0,0.33119224]
[1756108228389,0.61961816,111780.0,111770.0,0.33115224]
[1756108229080,0.03327267,111780.0,111770.0,0.33115224]
[1756108229266,0.61961816,111780.0,111770.0,0.17411224]
[1756108229471,0.61961816,111780.0,111770.0,0.30103931]
[1756108230269,0.61961816,111780.0,111770.0,0.08693475]
[1756108230466,0.61961816,111780.0,111770.0,0.30103931]
[1756108232658,0.61961816,111780.0,111770.0,0.30311931]
[1756108232659,0.61647816,111780.0,111770.0,0.30311931]
[1756108233118,0.61437816,111780.0,111770.0,0.30627931]
[1756108233266,0.61437816,111780.0,111770.0,0.33691224]
[1756108233583,0.62851036,111780.0,111770.0,0.33691224]
[1756108234192,0.63061036,111780.0,111770.0,0.33691224]
[1756108234554,0.63061036,111780.0,111770.0,0.33375224]
[1756108234832,0.63375036,111780.0,111770.0,0.17463224]
[1756108235035,0.63375036,111780.0,111770.0,0.30099931]
[1756108236795,0.63061036,111780.0,111770.0,0.30307931]
[1756108237901,0.62851036,111780.0,111770.0,0.30623931]
[1756108239386,0.02803267,111780.0,111770.0,0.30623931]
[1756108239592,0.002,111780.0,111770.0,0.34686824]
[1756108240417,0.59352147,111780.0,111770.0,0.34158824]
[1756108240644,0.59352147,111780.0,111770.0,0.18462824]
[1756108240850,0.59352147,111780.0,111770.0,0.34158824]
[1756108241064,0.002,111780.0,111770.0,0.34690824]
[1756108241272,0.58730147,111780.0,111770.0,0.34690824]
[1756108241918,0.58730147,111780.0,111770.0,0.18673824]
[1756108242125,0.58828147,111780.0,111770.0,0.34158824]
[1756108242327,0.59152147,111780.0,111770.0,0.18462824]
[1756108242535,0.59152147,111780.0,111770.0,0.34158824]
[1756108242744,0.59252147,111780.0,111770.0,0.34158824]
[1756108242948,0.00298,111780.0,111770.0,0.34369824]
[1756108243166,0.58928147,111780.0,111770.0,0.18673824]
[1756108243368,0.58928147,111780.0,111770.0,0.34369824]
[1756108243775,0.58828147,111780.0,111770.0,0.34369824]
[1756108243986,0.58928147,111780.0,111770.0,0.18462824]
[1756108244203,0.58928147,111780.0,111770.0,0.34158824]
[1756108244204,0.59252147,111780.0,111770.0,0.34158824]
[1756108244820,0.00722,111780.0,111770.0,0.34369824]
[1756108245024,0.59352147,111780.0,111770.0,0.34158824]
[1756108248577,0.59028147,111780.0,111770.0,0.34369824]
[1756108249392,0.00398,111780.0,111770.0,0.34369824]
[1756108249593,0.00722,111780.0,111770.0,0.34158824]
[1756108249802,0.002,111780.0,111770.0,0.34690824]
[1756108254450,0.002,111780.0,111770.0,0.34682824]
[1756108255748,0.00906899,111790.0,111780.0,0.05706456]
[1756108255968,0.00955113,111790.0,111780.0,0.18842519]
[1756108256099,0.00048214,111790.0,111780.0,0.34083213]
[1756108256295,0.00930699,111790.0,111780.0,0.34083213]
[1756108256498,0.01128699,111790.0,111780.0,0.34083213]
[1756108256930,0.01030699,111790.0,111780.0,0.34083213]
[1756108258170,0.01130699,111790.0,111780.0,0.34083213]
[1756108258806,0.00248214,111790.0,111780.0,0.34083213]
[1756108260468,0.00248214,111790.0,111780.0,0.9959336]
[1756108260692,0.00248214,111790.0,111780.0,1.81485648]
[1756108260929,0.00248214,111790.0,111780.0,2.16340826]
[1756108261167,0.0002,111800.0,111790.0,0.79342045]
[1756108261373,0.0002,111800.0,111790.0,1.6097464]
[1756108262026,0.0002,111800.0,111790.0,0.41117758]
[1756108262261,0.0002,111800.0,111790.0,0.80824214]
[1756108262699,0.0002,111800.0,111790.0,1.25107895]
[1756108262936,0.0002,111800.0,111790.0,0.81024214]
[1756108263173,0.0002,111800.0,111790.0,0.55644214]
[1756108263395,0.0002,111800.0,111790.0,0.71324214]
[1756108263813,0.0002,111800.0,111790.0,0.81324214]
[1756108264035,0.0002,111800.0,111790.0,0.80666214]
[1756108264234,0.0002,111800.0,111790.0,1.39258677]
[1756108264451,0.0002,111800.0,111790.0,1.41661579]
[1756108264677,0.0002,111800.0,111790.0,1.69552266]
[1756108264883,0.0002,111800.0,111790.0,1.95783422]
[1756108265098,0.0002,111800.0,111790.0,2.54375885]
[1756108265307,0.0002,111800.0,111790.0,2.86875885]
[1756108265548,1.674e-05,111800.0,111790.0,2.96311885]
[1756108265778,1.674e-05,111800.0,111790.0,2.96111885]
[1756108266005,0.07110163,111860.0,111850.0,0.05706456]
[1756108266236,0.07308163,111860.0,111850.0,0.22373577]
[1756108266455,0.07308163,111860.0,111850.0,0.37728577]
[1756108266679,0.07308163,111860.0,111850.0,0.21841577]
[1756108266894,0.07308163,111860.0,111850.0,0.37517577]
[1756108268030,0.07308163,111860.0,111850.0,0.21841577]
[1756108268252,0.07308163,111860.0,111850.0,0.37513577]
[1756108268483,0.66070626,111860.0,111850.0,0.21841577]
[1756108268716,0.66070626,111860.0,111850.0,0.37513577]
[1756108268925,0.66070626,111860.0,111850.0,0.09259121]
[1756108269146,0.07478163,111860.0,111850.0,0.30066931]
[1756108269367,0.66070626,111860.0,111850.0,0.30066931]
[1756108269581,0.66070626,111860.0,111850.0,0.14394931]
[1756108269809,0.66170626,111860.0,111850.0,0.30066931]
[1756108270912,0.00568,111860.0,111850.0,0.33073624]
[1756108271133,0.00198,111860.0,111850.0,0.33073624]
[1756108271579,0.00298,111860.0,111850.0,0.33073624]
[1756108272005,0.00398,111860.0,111850.0,0.17615624]
[1756108272250,0.59160463,111860.0,111850.0,0.30062931]
[1756108272476,0.59160463,111860.0,111850.0,0.14394931]
[1756108272909,0.59160463,111860.0,111850.0,0.08688475]
[1756108273337,1.53497828,111860.0,111850.0,5e-05]
[1756108273572,1.0359233,111860.0,111850.0,5e-05]
[1756108273989,0.44999867,111860.0,111850.0,5e-05]
[1756108274205,1.0339233,111860.0,111850.0,5e-05]
[1756108274427,1.0359233,111860.0,111850.0,5e-05]
[1756108274656,0.00668,111860.0,111850.0,0.14399931]
[1756108274924,0.59260463,111860.0,111850.0,0.14399931]
[1756108275138,0.00468,111860.0,111850.0,0.14399931]
[1756108275369,0.59360463,111860.0,111850.0,0.14399931]
[1756108275806,0.00668,111860.0,111850.0,0.14399931]
[1756108276026,0.00368,111860.0,111850.0,0.15884631]
[1756108276275,0.58790463,111860.0,111850.0,0.15884631]
[1756108276497,0.58960463,111860.0,111850.0,0.15884631]
[1756108276979,0.58790463,111860.0,111850.0,0.15884631]
[1756108277452,0.58990463,111860.0,111850.0,0.15884631]
[1756108277678,0.58790463,111860.0,111850.0,0.15884631]
[1756108277901,0.58990463,111860.0,111850.0,0.16098631]
[1756108278106,0.58890463,111860.0,111850.0,0.15884631]
[1756108278333,0.58790463,111860.0,111850.0,0.15884631]
[1756108278791,0.02687,111860.0,111850.0,0.32083631]
[1756108280822,0.02787,111860.0,111850.0,0.32083631]
[1756108281069,0.02687,111860.0,111850.0,0.32083631]
[1756108281316,0.61577463,111860.0,111850.0,0.14399931]
[1756108281739,0.61477463,111860.0,111850.0,0.14399931]
[1756108282637,0.03197,111860.0,111850.0,0.14399931]
[1756108282875,0.61789463,111860.0,111850.0,0.14399931]
[1756108283802,0.61477463,111860.0,111850.0,0.14613931]
[1756108284008,0.61477463,111860.0,111850.0,0.16795024]
[1756108284391,0.61477463,111860.0,111850.0,0.16581024]
[1756108284619,0.61789463,111860.0,111850.0,0.16581024]
[1756108285048,0.61477463,111860.0,111850.0,0.16581024]
[1756108286442,0.02885,111860.0,111850.0,0.16581024]
[1756108286652,0.61477463,111860.0,111850.0,0.16581024]
[1756108287083,0.02885,111860.0,111850.0,0.16581024]
[1756108287307,0.61477463,111860.0,111850.0,0.16581024]
[1756108287550,0.02885,111860.0,111850.0,0.32455024]
[1756108287786,0.61477463,111860.0,111850.0,0.32455024]
[1756108288458,0.61477463,111860.0,111850.0,0.32241024]
[1756108290050,0.61477463,111860.0,111850.0,0.14399931]
[1756108290572,0.61789463,111860.0,111850.0,0.14399931]
[1756108291667,0.77445463,111860.0,111850.0,0.14399931]
[1756108291982,0.77845463,111860.0,111850.0,0.14399931]
[1756108297657,1.70437926,111860.0,111850.0,0.14399931]
[1756108297905,1.79958009,111860.0,111850.0,0.14399931]
[1756108298166,1.79958,111860.0,111850.0,0.14399931]
[1756108298366,1.71271035,111860.0,111850.0,0.14399931]
[1756108298567,1.71271152,111860.0,111850.0,0.14399931]
[1756108299230,1.71271161,111860.0,111850.0,0.14399931]
[1756108300248,1.71271161,111860.0,111850.0,0.08693475]
[1756108300463,1.71271161,111860.0,111850.0,0.14399931]
[1756108301086,1.12674698,111860.0,111850.0,0.14399931]
[1756108301301,1.71267161,111860.0,111850.0,0.14399931]
[1756108301524,0.61679463,111860.0,111850.0,0.16348924]
[1756108301787,0.61679463,111860.0,111850.0,0.14908931]
[1756108303503,0.63055874,111860.0,111850.0,0.14908931]
[1756108304321,0.63112874,111860.0,111850.0,0.14908931]
[1756108304886,0.63112874,111860.0,111850.0,0.14613931]
[1756108305104,0.63055874,111860.0,111850.0,0.14908931]
[1756108305462,0.61649005,111860.0,111850.0,0.14908931]
[1756108305691,0.61649005,111860.0,111850.0,0.15132444]
[1756108307376,0.61864005,111860.0,111850.0,0.14908931]
[1756108307599,0.61649005,111860.0,111850.0,0.14908931]
[1756108308647,0.61649005,111860.0,111850.0,0.17965024]
[1756108309767,0.61864005,111860.0,111850.0,0.14908931]
[1756108310012,0.61864005,111860.0,111850.0,0.14399931]
[1756108310520,0.62183005,111860.0,111850.0,0.14399931]
[1756108310723,0.03087,111860.0,111850.0,0.14908931]
[1756108310935,0.58962005,111860.0,111850.0,0.14908931]
[1756108311143,0.74610005,111860.0,111850.0,0.14908931]
[1756108311572,0.74610005,111860.0,111850.0,0.1821049]
[1756108311573,0.004,111860.0,111850.0,0.1821049]
[1756108311788,0.004,111860.0,111850.0,0.17986977]
[1756108312711,0.004,111860.0,111850.0,0.33634977]
[1756108312925,0.002,111860.0,111850.0,0.33634977]
[1756108313385,0.00911237,111870.0,111850.0,0.33634977]
[1756108313386,0.00911237,111870.0,111860.0,0.05706456]
[1756108313600,0.59473242,111870.0,111860.0,0.16849132]
[1756108313831,0.59473242,111870.0,111860.0,0.16625639]
[1756108314491,0.59473242,111870.0,111860.0,0.16402146]
[1756108314717,0.59788242,111870.0,111860.0,0.14394931]
[1756108315162,0.60107242,111870.0,111860.0,0.14394931]
[1756108315374,0.68728144,111870.0,111850.0,0.05711456]
[1756108315604,0.74525005,111860.0,111850.0,0.14399931]
[1756108315812,0.74740005,111860.0,111850.0,0.14399931]
[1756108316460,0.78734693,111860.0,111850.0,0.14399931]
[1756108316670,0.58777005,111860.0,111850.0,0.14399931]
[1756108316851,0.74421005,111860.0,111850.0,0.14613931]
[1756108317284,0.74421005,111860.0,111850.0,0.14908931]
[1756108317285,0.74621005,111860.0,111850.0,0.14908931]
[1756108317496,0.74406005,111860.0,111850.0,0.14908931]
[1756108317706,0.74621005,111860.0,111850.0,0.14399931]
[1756108317917,0.74406005,111860.0,111850.0,0.14908931]
[1756108319005,0.74406005,111860.0,111850.0,0.15132444]
[1756108319431,0.004,111860.0,111850.0,0.14908931]
[1756108319690,0.58962005,111860.0,111850.0,0.15355957]
[1756108319906,0.58962005,111860.0,111850.0,0.15132444]
[1756108320129,0.004,111860.0,111850.0,0.18433601]
[1756108320358,0.002,111860.0,111850.0,0.17986575]
[1756108320618,0.00014466,111870.0,111860.0,0.05706456]
[1756108320840,0.00014466,111870.0,111860.0,0.30248931]
[1756108321037,0.00014466,111870.0,111860.0,0.30543931]
[1756108321290,0.00014466,111870.0,111860.0,0.34594689]
[1756108322216,0.00014466,111870.0,111860.0,0.34694689]
[1756108322867,0.00014466,111870.0,111860.0,0.19054689]
[1756108323079,0.00014466,111870.0,111860.0,0.34694689]
[1756108324383,0.00014466,111870.0,111860.0,0.19054689]
[1756108324600,0.00014466,111870.0,111860.0,0.34694689]
[1756108325050,0.58576471,111870.0,111860.0,0.19054689]
[1756108325269,0.58609471,111870.0,111860.0,0.34181689]
[1756108325486,0.58576471,111870.0,111860.0,0.34690689]
[1756108326150,0.00014466,111870.0,111860.0,0.34690689]
[1756108326362,0.58609471,111870.0,111860.0,0.19054689]
[1756108326575,0.58925471,111870.0,111860.0,0.30130931]
[1756108326787,0.58609471,111870.0,111860.0,0.30130931]
[1756108326993,0.58609471,111870.0,111860.0,0.30344931]
[1756108327213,0.58609471,111870.0,111860.0,0.30639931]
[1756108327424,0.58609471,111870.0,111860.0,0.34392524]
[1756108327849,0.58609471,111870.0,111860.0,0.33883524]
[1756108328471,0.58609471,111870.0,111860.0,0.34097524]
[1756108328686,0.58609471,111870.0,111860.0,0.34392524]
[1756108328687,0.00014466,111870.0,111860.0,0.34392524]
[1756108328938,0.58576471,111870.0,111860.0,0.34392524]
[1756108329160,0.58791471,111870.0,111860.0,0.34392524]
[1756108329568,0.58576471,111870.0,111860.0,0.34392524]
[1756108332435,0.00014466,111870.0,111860.0,0.18756524]
[1756108332653,0.58785471,111870.0,111860.0,0.33879524]
[1756108332870,0.00223466,111870.0,111860.0,0.34094524]
[1756108333069,0.58785471,111870.0,111860.0,0.33879524]
[1756108333899,0.59088471,111870.0,111860.0,0.33879524]
[1756108334106,0.59088471,111870.0,111860.0,0.14494931]
[1756108334730,0.93088471,111870.0,111860.0,0.14494931]
[1756108334959,1.08716471,111870.0,111860.0,0.14394931]
[1756108335166,1.11403471,111870.0,111860.0,0.14394931]
[1756108335365,1.11603471,111870.0,111860.0,0.14394931]
[1756108335573,1.11503471,111870.0,111860.0,0.14394931]
[1756108335791,1.11403471,111870.0,111860.0,0.14394931]
[1756108336007,0.95875471,111870.0,111860.0,0.14394931]
[1756108336243,1.11603471,111870.0,111860.0,0.14394931]
[1756108337128,1.1560787,111870.0,111860.0,0.14394931]
[1756108337626,1.1530487,111870.0,111860.0,0.14394931]
[1756108337847,0.56742865,111870.0,111860.0,0.14394931]
[1756108338065,1.1530487,111870.0,111860.0,0.14394931]
[1756108340188,1.1560787,111870.0,111860.0,0.14394931]
[1756108341029,1.75914777,111870.0,111860.0,0.14394931]
[1756108341262,1.17348772,111870.0,111860.0,0.08693475]
[1756108341469,1.17348772,111870.0,111860.0,5e-05]
[1756108341906,1.17248772,111870.0,111860.0,5e-05]
[1756108342111,1.01824772,111870.0,111860.0,5e-05]
[1756108342325,1.26035737,111870.0,111860.0,5e-05]
[1756108342591,1.26335737,111870.0,111860.0,5e-05]
[1756108342812,1.10511737,111870.0,111860.0,5e-05]
[1756108343197,1.26135737,111870.0,111860.0,5e-05]
[1756108343905,2.47415635,111870.0,111860.0,5e-05]
[1756108344142,2.50299114,111870.0,111860.0,5e-05]
[1756108344399,1.89835114,111870.0,111860.0,5e-05]
[1756108344633,1.46864772,111870.0,111860.0,5e-05]
[1756108345072,1.62488772,111870.0,111860.0,5e-05]
[1756108345737,2.21050777,111870.0,111860.0,5e-05]
[1756108345965,2.3892867,111870.0,111860.0,5e-05]
[1756108346230,2.29737742,111870.0,111860.0,5e-05]
[1756108346672,2.14113742,111870.0,111860.0,5e-05]
[1756108346886,1.46864772,111870.0,111860.0,5e-05]
[1756108347090,1.62488772,111870.0,111860.0,5e-05]
[1756108347304,1.1081687,111870.0,111860.0,0.14614931]
[1756108347558,1.2644087,111870.0,111860.0,0.14939931]
[1756108347764,1.46561772,111870.0,111860.0,0.14939931]
[1756108347969,1.62185772,111870.0,111860.0,0.14939931]
[1756108348395,1.46352772,111870.0,111860.0,0.14939931]
[1756108348599,1.2623187,111870.0,111860.0,0.14939931]
[1756108349042,0.6576787,111870.0,111860.0,0.16434924]
[1756108349252,0.59076471,111870.0,111860.0,0.14939931]
[1756108349460,0.58876471,111870.0,111860.0,0.14939931]
[1756108350242,0.59085471,111870.0,111860.0,0.14939931]
[1756108350336,0.58576471,111870.0,111860.0,0.14939931]
[1756108350547,0.76154373,111870.0,111860.0,0.14399931]
[1756108350752,0.76354373,111870.0,111860.0,0.14399931]
[1756108350909,0.78977822,111870.0,111860.0,0.14399931]
[1756108351122,0.83024504,111870.0,111860.0,0.14399931]
[1756108351324,0.83327504,111870.0,111860.0,0.14399931]
[1756108351732,1.14804055,111870.0,111860.0,0.08693475]
[1756108351932,1.14804055,111870.0,111860.0,0.14399931]
[1756108352498,1.14501055,111870.0,111860.0,0.14399931]
[1756108353217,1.10454373,111870.0,111860.0,0.14614931]
[1756108353637,1.10245373,111870.0,111860.0,0.14939931]
[1756108354286,0.94621373,111870.0,111860.0,0.14939931]
[1756108354490,1.10241373,111870.0,111860.0,0.14939931]
[1756108354876,1.10450373,111870.0,111860.0,0.14939931]
[1756108355717,1.10450373,111870.0,111860.0,0.14614931]
[1756108355921,1.10450373,111870.0,111860.0,0.14939931]
[1756108355922,1.13137573,111870.0,111860.0,0.14939931]
[1756108356127,1.12928573,111870.0,111860.0,0.14939931]
[1756108356335,1.13137573,111870.0,111860.0,0.14939931]
[1756108356542,1.13137573,111870.0,111860.0,0.14614931]
[1756108357397,1.13137573,111870.0,111860.0,0.14939931]
[1756108357608,1.13137573,111870.0,111860.0,0.14614931]
[1756108358571,1.13137573,111870.0,111860.0,0.14399931]
[1756108358786,1.13440573,111870.0,111860.0,0.14399931]
[1756108358985,1.13137573,111870.0,111860.0,0.14399931]
[1756108359597,1.13458573,111870.0,111860.0,0.14399931]
[1756108359925,1.22145538,111870.0,111860.0,0.14399931]
[1756108360121,1.13458573,111870.0,111860.0,0.14399931]
[1756108360343,1.13137573,111870.0,111860.0,0.14399931]
[1756108360529,0.97517573,111870.0,111860.0,0.14399931]
[1756108360856,1.13137573,111870.0,111860.0,0.14399931]
[1756108361029,0.54575568,111870.0,111860.0,0.14609931]
[1756108361224,1.13137573,111870.0,111860.0,0.14399931]
[1756108362727,1.13137573,111870.0,111860.0,0.14609931]
[1756108363337,1.13137573,111870.0,111860.0,0.14399931]
[1756108363952,1.57977573,111870.0,111860.0,0.14399931]
[1756108364180,0.99415568,111870.0,111860.0,0.14609931]
[1756108364384,1.57977573,111870.0,111860.0,0.14399931]
[1756108364818,1.59849989,111870.0,111860.0,0.14399931]
[1756108365279,1.58298573,111870.0,111860.0,0.08693475]
[1756108365546,2.16860578,111870.0,111860.0,5e-05]
[1756108365755,1.13458573,111870.0,111860.0,5e-05]
[1756108367365,0.97838573,111870.0,111860.0,5e-05]
[1756108367584,1.13458573,111870.0,111860.0,5e-05]
[1756108367839,1.15134314,111870.0,111860.0,5e-05]
[1756108368087,1.73696319,111870.0,111860.0,5e-05]
[1756108368297,1.15134314,111870.0,111860.0,5e-05]
[1756108368505,1.14813314,111870.0,111860.0,0.14399931]
[1756108368716,1.14813314,111870.0,111860.0,0.14609931]
[1756108369144,0.37001666,111870.0,111860.0,0.14919931]
[1756108369369,1.11712671,111870.0,111860.0,0.14399931]
[1756108369577,1.11391671,111870.0,111860.0,0.14399931]
[1756108369795,1.13457573,111870.0,111860.0,0.14399931]
[1756108370022,0.54895568,111870.0,111860.0,5e-05]
[1756108370246,0.60474551,111870.0,111860.0,5e-05]
[1756108370493,1.03416556,111870.0,111860.0,0.06231456]
[1756108370713,1.12992573,111870.0,111860.0,0.06231456]
[1756108370927,1.13200573,111870.0,111860.0,0.05921456]
[1756108371150,0.54959568,111870.0,111860.0,0.08693475]
[1756108371370,0.54959568,111870.0,111860.0,0.05711456]
[1756108371371,0.38954568,111870.0,111860.0,0.05711456]
[1756108371580,0.54486568,111870.0,111860.0,0.14919931]
[1756108371851,0.55426568,111870.0,111860.0,0.14609931]
[1756108372066,1.13780573,111870.0,111860.0,0.14919931]
[1756108372286,1.14309573,111870.0,111860.0,0.08693475]
[1756108372507,1.72871578,111870.0,111860.0,5e-05]
[1756108372727,0.53624394,111860.0,111850.0,0.0001]
[1756108372944,0.36273902,111860.0,111850.0,0.0001]
[1756108373234,0.53521902,111860.0,111850.0,0.0001]
[1756108373443,1.70645912,111860.0,111850.0,0.0001]
[1756108373659,0.53521902,111860.0,111850.0,0.0001]
[1756108374054,1.12083907,111860.0,111850.0,0.0001]
[1756108374288,1.70645912,111860.0,111850.0,0.0001]
[1756108374559,1.88525404,111860.0,111850.0,0.0001]
[1756108374773,1.88525404,111860.0,111820.0,5e-05]
[1756108374774,0.5362919,111830.0,111820.0,5e-05]
[1756108374980,1.77132912,111830.0,111820.0,5e-05]
[1756108375195,1.43263174,111830.0,111820.0,5e-05]
[1756108375407,1.4191701,111830.0,111820.0,5e-05]
[1756108375642,0.83355005,111830.0,111820.0,5e-05]
[1756108376137,1.01239293,111830.0,111820.0,5e-05]
[1756108376394,1.70166948,111830.0,111820.0,5e-05]
[1756108376658,1.72704118,111830.0,111820.0,5e-05]
[1756108376913,1.72704118,111830.0,111810.0,5e-05]
[1756108376914,1.35009898,111820.0,111810.0,5e-05]
[1756108377134,0.17887487,111810.0,111800.0,0.0001]
[1756108377384,1.87188497,111810.0,111800.0,0.0001]
[1756108377613,0.34208,111810.0,111800.0,0.0001]
[1756108377839,1.87320497,111810.0,111800.0,0.0001]
[1756108378399,1.96008972,111810.0,111800.0,0.0001]
[1756108378615,0.34,111780.0,111770.0,0.00933466]
[1756108378830,1.19274907,111780.0,111770.0,0.01143466]
[1756108379054,0.64727377,111780.0,111770.0,0.01143466]
[1756108379278,0.65662877,111780.0,111770.0,0.01453466]
[1756108379569,1.24224882,111780.0,111770.0,0.01453466]
[1756108379798,0.66191877,111780.0,111770.0,0.00933466]
[1756108380037,0.34,111770.0,111740.0,0.00045]
[1756108380259,0.34,111770.0,111740.0,0.10212532]
[1756108380260,0.53109601,111770.0,111740.0,0.10212532]
[1756108380474,0.34,111770.0,111740.0,0.10212532]
[1756108380704,1.1712401,111750.0,111740.0,0.10212532]
[1756108380942,0.18104,111750.0,111740.0,0.10212532]
[1756108381181,0.58562005,111750.0,111740.0,0.10212532]
[1756108381421,1.6988501,111750.0,111740.0,0.08781689]
[1756108381689,1.5165301,111750.0,111740.0,0.00093214]
[1756108381983,0.17898693,111740.0,111730.0,0.01175843]
[1756108382230,0.03206051,111700.0,111650.0,0.06968581]
[1756108382509,0.03206051,111700.0,111690.0,0.0021]
[1756108382768,0.03206051,111700.0,111690.0,0.08688475]
[1756108382769,1.54859061,111700.0,111690.0,0.08688475]
[1756108383050,0.62939051,111700.0,111690.0,0.08688475]
[1756108383375,0.65630051,111700.0,111690.0,0.08688475]
[1756108383610,0.65630051,111700.0,111640.0,0.23316918]
[1756108383611,0.03206051,111690.0,111640.0,0.23316918]
[1756108383864,0.34,111670.0,111660.0,0.08670582]
[1756108384115,0.73699964,111670.0,111660.0,0.08473752]
[1756108384371,0.03206051,111650.0,111640.0,0.23347108]
[1756108384621,0.03206051,111650.0,111640.0,0.23557108]
[1756108384836,0.38950953,111650.0,111640.0,0.23867108]
[1756108385076,0.55598051,111650.0,111640.0,0.23467643]
[1756108385305,0.55714051,111650.0,111640.0,0.32045175]
[1756108385529,0.55714051,111650.0,111640.0,0.31905601]
[1756108385753,0.55734051,111650.0,111640.0,0.31460021]
[1756108386026,0.03735051,111650.0,111640.0,0.31017421]
[1756108386243,0.03206051,111650.0,111640.0,0.31304135]
[1756108386468,0.03414051,111650.0,111640.0,0.30977835]
[1756108386697,0.03414051,111650.0,111640.0,0.30838275]
[1756108386698,0.03735051,111650.0,111640.0,0.30838275]
[1756108386928,0.03414051,111650.0,111640.0,0.30838275]
[1756108387153,0.03414051,111650.0,111640.0,0.30535895]
[1756108387380,0.03206051,111650.0,111640.0,0.30706995]
[1756108387605,0.03206051,111650.0,111640.0,0.30311575]
[1756108387822,0.21934051,111650.0,111640.0,0.30072015]
[1756108388037,0.03206051,111650.0,111640.0,0.30072015]
[1756108388260,0.21946051,111650.0,111640.0,0.8863402]
[1756108388478,0.22046051,111650.0,111640.0,0.8863402]
[1756108388691,0.21946051,111650.0,111640.0,0.30072015]
[1756108388912,0.21946051,111650.0,111640.0,0.29982415]